bitfinex/quotes_ETHUSD_20250106
["timestamp","ask_amount","ask_price","bid_price","bid_amount"]
[1736137588054,2.60075758,3674.1,3673.4,35.0]
[1736137588265,2.60075758,3674.1,3673.4,35.09738232]
[1736137589904,3.74161319,3674.1,3673.4,35.09738232]
[1736137590283,4.60772685,3674.1,3673.4,35.09738232]
[1736137590610,0.8279,3674.0,3673.4,35.09738232]
[1736137590779,0.8279,3673.2,3672.4,1.13657]
[1736137590980,7.65151516,3673.5,3672.4,1.13657]
[1736137590981,2.60075758,3672.5,3672.4,1.13657]
[1736137591309,0.8279,3672.9,3672.4,1.13657]
[1736137591310,2.60075758,3672.8,3672.4,1.13657]
[1736137591869,0.8279,3672.9,3672.4,1.13657]
[1736137592103,1.38531116,3672.9,3672.4,1.13657]
[1736137592311,3.98606874,3672.9,3672.4,1.13657]
[1736137592483,4.62970261,3672.9,3672.4,1.13657]
[1736137592893,4.62642814,3672.9,3672.4,1.13657]
[1736137593211,3.98279427,3672.9,3672.4,1.13657]
[1736137593408,3.98279427,3672.9,3671.8,3.0]
[1736137594015,3.98279427,3672.9,3671.9,35.0]
[1736137594672,2.60075758,3672.3,3671.9,35.0]
[1736137594875,2.86083334,3672.3,3671.9,35.0]
[1736137595088,2.60075758,3672.3,3671.7,0.8226]
[1736137595284,2.60075758,3672.6,3671.7,0.8226]
[1736137595489,2.60075758,3672.6,3671.8,35.0]
[1736137598397,2.60075758,3672.6,3671.9,0.08379196]
[1736137598619,3.98279427,3672.9,3671.9,0.08379196]
[1736137598908,0.64331543,3672.8,3671.7,0.8226]
[1736137599088,0.64331543,3672.8,3672.0,35.0]
[1736137599294,0.64331543,3672.8,3672.1,0.08371667]
[1736137600210,2.45053,3672.7,3672.1,0.08371667]
[1736137600398,5.05134758,3672.6,3672.1,0.08371667]
[1736137600603,0.5694663,3672.5,3672.1,0.08371667]
[1736137602606,0.5694663,3672.5,3671.7,0.8226]
[1736137602807,0.5694663,3672.5,3672.2,0.08366126]
[1736137603111,0.5694663,3672.5,3671.8,35.0]
[1736137603319,0.5694663,3672.5,3671.9,0.08444441]
[1736137603746,0.5694663,3672.5,3671.7,0.8226]
[1736137604026,0.5694663,3672.5,3672.0,0.08441121]
[1736137604189,0.56208139,3672.4,3671.8,35.0]
[1736137604390,0.56208139,3672.4,3672.1,0.084378]
[1736137604592,0.56208139,3672.4,3671.7,0.8226]
[1736137604824,0.56208139,3672.4,3672.2,0.0843448]
[1736137605121,0.56208139,3672.4,3671.7,35.8226]
[1736137605326,0.56208139,3672.4,3672.3,0.08431159]
[1736137605509,0.56208139,3672.4,3671.7,35.8226]
[1736137605726,0.56208139,3672.4,3672.3,0.08431159]
[1736137606620,0.56208139,3672.4,3671.7,35.8226]
[1736137606829,0.5613499,3672.3,3671.7,35.8226]
[1736137607410,2.45074,3672.4,3671.7,35.8226]
[1736137608332,3.2195,3672.3,3671.7,35.0]
[1736137609130,0.7687,3672.3,3671.7,35.0]
[1736137609526,0.7687,3672.3,3671.8,0.08447762]
[1736137609893,0.7687,3672.3,3671.7,35.0]
[1736137610093,0.7687,3672.3,3671.8,0.08447762]
[1736137610326,0.7687,3672.3,3671.7,35.0]
[1736137610631,0.7687,3672.3,3671.8,0.08447762]
[1736137610827,0.7687,3672.3,3671.7,35.0]
[1736137611031,0.7687,3672.3,3671.9,0.08444441]
[1736137611243,0.7687,3672.3,3671.7,35.0]
[1736137611437,0.7687,3672.3,3672.0,0.08441121]
[1736137611734,1.40504123,3672.3,3672.1,0.084378]
[1736137611927,1.40504123,3672.3,3671.7,35.0]
[1736137612328,1.40504123,3672.3,3671.8,0.08447762]
[1736137612528,1.40504123,3672.3,3671.7,35.0]
[1736137612704,1.40504123,3672.3,3671.8,0.08447762]
[1736137613105,1.40504123,3672.3,3671.4,3.758]
[1736137613334,1.40504123,3672.3,3671.9,0.08444441]
[1736137613499,0.4399036,3672.2,3672.0,0.08441121]
[1736137613706,0.4399036,3672.2,3671.5,35.0]
[1736137614042,0.4399036,3672.2,3671.6,0.08463285]
[1736137614404,0.4399036,3672.2,3671.4,3.758]
[1736137614604,0.4399036,3672.2,3671.7,0.08459964]
[1736137614805,0.23882595,3672.1,3671.5,35.0]
[1736137615006,0.23882595,3672.1,3671.8,0.08456642]
[1736137615241,0.23882595,3672.1,3671.5,35.0]
[1736137615439,0.23882595,3672.1,3671.9,0.08453321]
[1736137615737,0.23882595,3672.1,3672.0,0.08450001]
[1736137615923,0.23882595,3672.1,3671.5,35.0]
[1736137616238,0.7687,3672.3,3671.6,0.08463285]
[1736137617428,3.36945758,3672.3,3671.6,0.08463285]
[1736137618109,3.36945758,3672.3,3671.7,0.08459964]
[1736137618436,2.45087,3672.2,3671.1,35.0]
[1736137618640,3.36945758,3672.3,3671.8,0.08456642]
[1736137618942,2.45094,3672.1,3671.1,35.0]
[1736137619323,2.45094,3672.1,3671.9,0.08453321]
[1736137619523,2.45094,3672.1,3671.1,35.0]
[1736137619919,2.45094,3672.1,3671.2,0.08476572]
[1736137620605,2.45094,3672.1,3671.3,35.0]
[1736137620822,0.36109172,3672.0,3671.3,35.0847325]
[1736137621221,2.81207172,3672.0,3671.3,35.0847325]
[1736137621450,2.45098,3672.0,3671.3,35.0847325]
[1736137622417,0.7769,3671.9,3671.3,35.0847325]
[1736137623070,0.7769,3671.9,3671.3,0.0847325]
[1736137623277,0.7769,3671.9,3671.0,0.7531]
[1736137623581,0.7769,3671.9,3671.1,35.0]
[1736137624076,0.7769,3672.1,3671.1,35.08479894]
[1736137624266,1.15400647,3672.1,3671.1,35.08479894]
[1736137624844,0.7769,3672.1,3671.2,0.55]
[1736137625043,0.7769,3672.5,3671.5,2.45131]
[1736137625579,0.7769,3672.5,3671.6,35.08477055]
[1736137627473,1.31741549,3672.5,3671.6,35.08477055]
[1736137627979,2.45083,3672.3,3671.6,35.08477055]
[1736137628304,3.22312,3672.1,3671.6,0.08477055]
[1736137628808,0.54051549,3672.5,3671.3,0.7616]
[1736137628809,2.45078,3672.3,3671.3,0.7616]
[1736137629095,2.45078,3672.3,3671.7,0.08473734]
[1736137629300,2.45078,3672.3,3671.3,0.7616]
[1736137629594,2.45078,3672.3,3671.8,0.08470412]
[1736137629794,2.45078,3672.3,3671.3,0.7616]
[1736137629795,0.37634955,3672.3,3671.3,0.7616]
[1736137630152,0.37634955,3672.3,3671.4,0.08483698]
[1736137635593,0.37634955,3672.3,3671.5,0.8179]
[1736137635953,0.37634955,3672.3,3671.5,0.90270376]
[1736137636992,2.48485837,3672.2,3671.5,0.90270376]
[1736137638496,1.14085561,3672.1,3671.5,0.90270376]
[1736137640194,2.08258002,3672.1,3671.5,0.90270376]
[1736137641499,1.14085561,3672.1,3671.5,0.90270376]
[1736137641655,2.48485837,3672.0,3671.5,0.90270376]
[1736137642892,1.14085561,3672.0,3671.5,0.90270376]
[1736137646780,1.14085561,3671.9,3671.5,0.90270376]
[1736137648059,2.03342395,3671.9,3671.5,0.90270376]
[1736137648258,2.78402395,3671.9,3671.5,0.08480376]
[1736137648454,0.54237047,3671.7,3671.2,1.41781255]
[1736137648662,2.99356047,3671.7,3671.6,0.08488154]
[1736137648860,3.83139467,3671.7,3671.2,1.41781255]
[1736137649061,3.83139467,3671.7,3671.6,0.0851214]
[1736137649262,3.83139467,3671.7,3671.2,1.41781255]
[1736137649459,3.83139467,3671.7,3671.6,0.0851214]
[1736137649698,3.83139467,3671.7,3671.2,1.41781255]
[1736137649895,0.79594214,3671.6,3671.2,1.41781255]
[1736137650101,3.24720214,3671.6,3671.3,0.08553198]
[1736137650312,2.45134,3671.5,3671.3,0.08553198]
[1736137650489,0.7506,3671.4,3671.2,1.41781255]
[1736137650686,2.45144,3671.3,3670.8,1.41781255]
[1736137651002,0.43428956,3671.2,3670.8,1.41781255]
[1736137651869,1.14085561,3671.1,3670.5,0.8213]
[1736137652986,1.57514517,3671.2,3670.5,0.8213]
[1736137654267,0.43428956,3671.2,3670.5,0.8213]
[1736137654481,0.43428956,3671.2,3670.6,0.08319978]
[1736137655479,1.14085561,3671.3,3670.6,0.08319978]
[1736137656294,1.34441592,3671.3,3670.6,0.08319978]
[1736137657339,0.8075,3671.2,3670.2,2.23798714]
[1736137657605,2.45164,3671.0,3670.7,0.08329518]
[1736137657779,2.45164,3671.0,3670.3,0.08347692]
[1736137657981,2.777554,3671.0,3670.3,0.08347692]
[1736137658181,0.325914,3671.0,3670.3,0.08347692]
[1736137659512,0.87547869,3671.0,3670.3,0.08347692]
[1736137660377,2.45186,3670.7,3670.3,0.08347692]
[1736137660773,2.45186,3670.7,3670.0,0.7928]
[1736137660975,0.327256,3670.6,3670.4,0.08344368]
[1736137661275,0.327256,3670.6,3669.7,3.5928599]
[1736137661276,0.8207,3670.5,3669.7,0.7928]
[1736137662786,3.27268,3670.5,3669.7,0.7928]
[1736137665189,0.8207,3670.5,3669.7,0.7928]
[1736137666770,5.05281758,3670.4,3669.2,1.3503]
[1736137666977,5.05281758,3670.4,3669.3,3.0]
[1736137667272,0.58735176,3670.3,3669.3,3.0]
[1736137667709,3.23248,3670.2,3669.1,1.13657]
[1736137668051,0.7803,3670.2,3669.1,6.58946]
[1736137668240,0.53686552,3670.1,3669.1,6.58946]
[1736137668374,1.23259701,3670.1,3669.1,3.58946]
[1736137668578,0.7803,3670.0,3669.1,1.13657]
[1736137669515,0.7803,3670.0,3669.2,0.8849723]
[1736137670433,0.69573149,3670.1,3669.2,0.0846723]
[1736137670434,2.60075758,3669.4,3669.2,0.0846723]
[1736137670637,1.11840576,3669.3,3668.3,2.45339]
[1736137671185,0.7803,3669.2,3668.2,1.13657]
[1736137671999,0.7803,3669.2,3668.2,4.13657]
[1736137672193,0.7803,3669.2,3668.2,6.59007]
[1736137672451,0.7803,3669.2,3668.5,0.7612]
[1736137672642,0.7801,3669.5,3668.6,2.45323]
[1736137674905,0.8046,3669.9,3668.9,0.7817]
[1736137678304,1.36355486,3669.9,3668.9,0.7817]
[1736137678504,0.64166224,3669.8,3668.9,0.7817]
[1736137679191,2.60075758,3669.7,3668.9,0.7817]
[1736137680030,2.60075758,3669.4,3668.9,0.7817]
[1736137681102,2.60075758,3669.7,3668.9,0.7817]
[1736137683852,0.7604,3669.3,3668.8,0.625]
[1736137684428,0.7604,3669.3,3668.9,0.07791113]
[1736137684829,2.60075758,3669.1,3668.8,0.625]
[1736137685054,2.60075758,3669.1,3669.0,0.0782768]
[1736137685251,2.60075758,3669.1,3668.8,0.625]
[1736137685567,2.60075758,3669.1,3669.0,0.0782768]
[1736137685776,2.60075758,3669.1,3668.9,0.0783145]
[1736137685943,0.36972733,3669.0,3668.8,0.625]
[1736137691756,0.53557493,3668.9,3668.8,0.625]
[1736137693154,1.31667493,3668.9,3668.8,0.625]
[1736137695860,3.76972493,3668.9,3668.8,0.625]
[1736137698225,1.31667493,3668.9,3667.9,0.8153]
[1736137698408,2.60075758,3668.2,3667.9,0.8153]
[1736137698987,3.39515758,3668.2,3668.1,0.07917264]
[1736137699207,2.60075758,3668.2,3668.1,0.005]
[1736137699368,2.60075758,3668.2,3668.1,0.07917264]
[1736137699702,2.60075758,3668.2,3668.1,0.005]
[1736137700227,2.94027334,3668.2,3668.1,0.07917264]
[1736137700384,2.94027334,3668.2,3668.1,0.005]
[1736137700588,2.94027334,3668.2,3668.1,0.07917264]
[1736137701078,1.97575758,3668.2,3668.1,0.07917264]
[1736137702401,1.97575758,3668.2,3668.1,0.005]
[1736137703305,1.97575758,3668.2,3668.1,0.07917264]
[1736137704568,1.97575758,3668.2,3668.1,0.005]
[1736137708392,1.97575758,3668.2,3668.1,0.07917264]
[1736137708595,1.97575758,3668.2,3668.1,0.005]
[1736137708810,1.97575758,3668.2,3668.1,0.07917264]
[1736137708811,2.25277334,3668.2,3668.1,0.07917264]
[1736137708975,2.25277334,3668.2,3668.1,0.005]
[1736137709178,2.25277334,3668.2,3668.1,0.07917264]
[1736137709378,2.25277334,3668.2,3668.1,0.005]
[1736137709575,2.25277334,3668.2,3668.1,0.07917264]
[1736137710696,2.25277334,3668.2,3668.1,0.005]
[1736137711413,4.70628334,3668.2,3668.1,0.005]
[1736137711599,5.50758334,3668.2,3668.1,0.005]
[1736137712715,2.25277334,3668.2,3668.1,0.005]
[1736137712912,3.31586219,3668.2,3668.1,0.005]
[1736137713211,1.34010461,3668.2,3668.1,0.005]
[1736137713726,1.34010461,3668.2,3668.1,0.778]
[1736137714011,1.34010461,3668.2,3668.1,0.85270416]
[1736137714179,2.60075758,3668.5,3668.1,0.85270416]
[1736137714604,2.60075758,3668.5,3668.1,0.778]
[1736137714992,2.60075758,3668.5,3668.2,0.07467088]
[1736137717675,0.7904,3668.4,3668.1,0.005]
[1736137717879,2.60075758,3668.2,3668.1,0.005]
[1736137718315,5.05426758,3668.2,3668.1,0.005]
[1736137719291,5.84466758,3668.2,3668.1,0.005]
[1736137719693,9.22375925,3668.2,3668.1,0.005]
[1736137719883,10.54513068,3668.2,3668.1,0.005]
[1736137722023,7.9443731,3668.2,3668.1,0.005]
[1736137722184,10.54513068,3668.2,3668.1,0.005]
[1736137722883,9.40427507,3668.2,3668.1,0.005]
[1736137724512,9.40427507,3668.2,3667.2,0.6841]
[1736137724714,9.40427507,3668.2,3668.1,0.07467317]
[1736137724894,9.40427507,3668.2,3667.2,0.6841]
[1736137725217,9.40427507,3668.2,3668.1,0.07467317]
[1736137725381,9.40427507,3668.2,3667.2,0.6841]
[1736137725784,9.40427507,3668.2,3667.3,0.07493945]
[1736137725785,5.83115604,3668.1,3667.3,0.07493945]
[1736137725979,7.06845289,3668.1,3667.3,0.07493945]
[1736137727017,3.37756604,3668.0,3667.3,0.07493945]
[1736137727185,5.83123604,3668.0,3667.3,0.07493945]
[1736137727386,2.45373,3667.9,3667.3,0.07493945]
[1736137727709,3.40685758,3667.7,3667.1,0.1788871]
[1736137728022,4.33067794,3667.7,3667.4,0.0750745]
[1736137728223,4.33067794,3667.7,3667.1,0.1788871]
[1736137729300,6.78455794,3667.7,3667.1,0.1788871]
[1736137729493,6.78455794,3667.7,3667.2,0.07514108]
[1736137730513,2.60075758,3667.4,3667.2,0.07514108]
[1736137730826,0.26007576,3667.3,3667.2,0.07514108]
[1736137731123,0.26007576,3667.3,3667.1,0.1788871]
[1736137732527,0.89646066,3667.2,3667.1,0.1788871]
[1736137733433,0.89646066,3667.2,3667.1,0.9327871]
[1736137733727,0.89646066,3667.2,3667.1,36.00807224]
[1736137734221,1.13932998,3667.4,3667.1,36.00807224]
[1736137735728,3.38153636,3667.9,3667.1,36.00807224]
[1736137736293,2.60075758,3667.7,3667.1,36.00807224]
[1736137736903,0.7734,3667.6,3667.1,0.25417224]
[1736137737106,2.60075758,3667.4,3667.1,0.25417224]
[1736137737307,0.58280776,3667.3,3667.1,0.25417224]
[1736137737493,2.60075758,3667.4,3667.1,0.25417224]
[1736137739533,0.8972029,3667.3,3667.1,0.25417224]
[1736137740996,0.8972029,3667.3,3667.1,0.1788871]
[1736137741331,0.8972029,3667.3,3667.2,0.07538477]
[1736137742249,2.48468341,3667.6,3667.2,0.07538477]
[1736137742250,2.03653288,3667.5,3667.2,0.07538477]
[1736137742451,2.03653288,3667.5,3667.3,0.7528]
[1736137742917,2.03653288,3667.5,3667.4,35.07531819]
[1736137743127,2.03325082,3667.5,3667.4,35.07531819]
[1736137743463,2.03325082,3667.5,3667.4,0.07531819]
[1736137743960,0.8972029,3667.8,3667.4,0.07531819]
[1736137744445,0.8972029,3667.8,3667.5,0.7528]
[1736137744674,0.8972029,3667.8,3667.6,35.0]
[1736137744829,0.8972029,3667.8,3667.6,35.07525161]
[1736137745042,0.8972029,3667.8,3667.6,0.07525161]
[1736137745363,1.71128341,3668.0,3667.7,0.7528]
[1736137745529,1.71128341,3668.0,3667.7,35.7528]
[1736137745868,1.71128341,3668.0,3667.8,0.07504324]
[1736137746668,1.71128341,3668.3,3667.8,0.07504324]
[1736137747766,1.71128341,3668.3,3667.7,0.7528]
[1736137747937,1.71128341,3668.3,3667.9,0.07500996]
[1736137748144,2.60075758,3668.2,3667.7,0.7528]
[1736137748368,2.60075758,3668.2,3668.0,0.07497668]
[1736137748569,2.60075758,3668.2,3667.4,0.8011]
[1736137748774,4.31204099,3668.2,3668.1,0.0749434]
[1736137748966,4.31204099,3668.2,3667.4,0.8011]
[1736137749164,4.31204099,3668.2,3668.1,0.0749434]
[1736137749370,5.47068089,3668.2,3667.4,0.8011]
[1736137749566,4.31204099,3668.2,3668.1,0.0749434]
[1736137749854,4.31204099,3668.2,3667.4,0.8011]
[1736137750057,6.55522201,3668.2,3667.4,0.8011]
[1736137750259,6.55522201,3668.2,3667.5,0.0751431]
[1736137751152,2.24318102,3668.1,3667.5,0.0751431]
[1736137751337,2.24318102,3668.1,3667.6,0.7604]
[1736137751547,2.24318102,3668.1,3667.6,1.16446112]
[1736137751747,2.24318102,3668.1,3667.7,35.0]
[1736137751943,2.24318102,3668.1,3667.7,35.07507652]
[1736137752249,2.24318102,3668.1,3667.7,0.07507652]
[1736137752852,2.27867165,3668.4,3667.7,35.07507652]
[1736137752853,1.71128341,3668.3,3667.7,35.07507652]
[1736137753341,1.71128341,3668.3,3667.9,0.7604]
[1736137753709,1.71128341,3668.3,3668.0,0.07497668]
[1736137754522,1.14168494,3668.1,3668.0,0.07497668]
[1736137756055,2.48766306,3668.1,3668.0,0.07497668]
[1736137756350,2.48766306,3668.1,3667.9,0.7604]
[1736137757213,1.14168494,3668.1,3667.9,0.7604]
[1736137758253,1.83077683,3668.1,3667.2,0.7583]
[1736137758661,4.28437683,3668.1,3667.3,0.07490399]
[1736137759022,2.45379,3667.8,3667.3,0.07490399]
[1736137759235,2.60075758,3667.6,3667.3,0.07490399]
[1736137759554,2.60075758,3667.6,3667.1,0.1788871]
[1736137759555,0.8217,3667.5,3667.4,0.07492386]
[1736137759862,0.8217,3667.5,3667.1,0.1788871]
[1736137759863,1.40933276,3667.5,3667.1,0.1788871]
[1736137760247,1.40933276,3667.5,3667.2,0.07503918]
[1736137760761,1.14168494,3667.3,3667.2,0.07503918]
[1736137760957,1.14168494,3667.3,3667.1,0.1788871]
[1736137762359,1.14168494,3667.3,3667.2,0.07503918]
[1736137763680,2.48778366,3667.3,3667.2,0.07503918]
[1736137763974,2.48778366,3667.3,3667.1,0.1788871]
[1736137765461,1.34609872,3667.2,3667.1,0.1788871]
[1736137766463,1.14168494,3667.3,3667.1,0.1788871]
[1736137766627,0.65056027,3667.2,3667.1,0.1788871]
[1736137767561,4.03554683,3667.2,3667.1,0.1788871]
[1736137770512,3.38498656,3667.2,3667.1,0.1788871]
[1736137770815,3.38498656,3667.2,3667.1,0.25444694]
[1736137770949,3.38498656,3667.2,3667.1,1.60584694]
[1736137771149,3.38498656,3667.2,3667.1,1.05584694]
[1736137771757,3.38498656,3667.4,3667.1,1.05584694]
[1736137771952,3.38498656,3667.4,3667.1,0.9802871]
[1736137772386,3.38498656,3667.4,3667.1,1.32375081]
[1736137772593,3.38498656,3667.4,3667.2,0.07552655]
[1736137773004,1.14168494,3667.6,3667.2,0.07552655]
[1736137773404,1.14168494,3667.6,3667.1,0.1788871]
[1736137773716,1.14168494,3667.6,3667.2,0.07552655]
[1736137773917,0.7511,3667.5,3667.2,0.07552655]
[1736137774213,0.7511,3667.5,3667.1,0.1788871]
[1736137774515,0.7511,3667.5,3667.2,0.07552655]
[1736137774812,0.7511,3667.5,3667.1,0.1788871]
[1736137775193,1.14168494,3667.3,3667.2,0.07552655]
[1736137775607,1.14168494,3667.3,3667.1,0.1788871]
[1736137777809,3.38498656,3667.4,3667.1,0.1788871]
[1736137778821,1.14168494,3667.3,3667.1,0.1788871]
[1736137781333,3.74244252,3667.3,3667.1,0.1788871]
[1736137781632,0.94621209,3667.2,3667.1,0.1788871]
[1736137782198,1.74651209,3667.2,3667.1,0.1788871]
[1736137782721,5.13149865,3667.2,3667.1,0.1788871]
[1736137783046,7.58567865,3667.2,3667.1,0.1788871]
[1736137783909,10.51670055,3667.2,3667.1,0.1788871]
[1736137785659,8.2380289,3667.2,3667.1,0.1788871]
[1736137787246,10.51670055,3667.2,3667.1,0.1788871]
[1736137789567,11.06062628,3667.2,3667.1,0.1788871]
[1736137795088,10.63470055,3667.2,3667.1,0.1788871]
[1736137798403,10.51670055,3667.2,3667.1,0.1788871]
[1736137798709,10.63470055,3667.2,3667.1,0.1788871]
[1736137801671,8.3560289,3667.2,3667.1,0.1788871]
[1736137802303,8.2380289,3667.2,3667.1,0.1788871]
[1736137802606,5.1015489,3667.2,3667.1,0.1788871]
[1736137802937,4.9835489,3667.2,3667.1,0.1788871]
[1736137803113,6.16298168,3667.2,3667.1,0.1788871]
[1736137803283,8.61716168,3667.2,3667.1,0.1788871]
[1736137804408,10.89923386,3667.2,3667.1,0.1788871]
[1736137806011,11.70283386,3667.2,3667.1,0.1788871]
[1736137806569,10.52340108,3667.2,3667.1,0.1788871]
[1736137806777,11.70283386,3667.2,3667.1,0.1788871]
[1736137807997,10.89923386,3667.2,3667.1,0.1788871]
[1736137808191,7.49884177,3667.2,3667.1,0.1788871]
[1736137809279,6.31940899,3667.2,3667.1,0.1788871]
[1736137809479,7.49884177,3667.2,3667.1,0.1788871]
[1736137810384,4.23819014,3667.2,3667.1,0.1788871]
[1736137811997,3.05875736,3667.2,3667.1,0.9977871]
[1736137812206,3.38515968,3667.2,3667.1,0.9977871]
[1736137813297,3.38515968,3667.2,3667.1,0.1788871]
[1736137813797,2.32129084,3667.3,3667.1,0.1788871]
[1736137815046,1.14185806,3667.3,3667.1,0.1788871]
[1736137815210,0.8972029,3667.2,3667.1,0.1788871]
[1736137816290,2.02374427,3667.2,3667.1,0.1788871]
[1736137817343,1.14185806,3667.2,3667.1,0.1788871]
[1736137817711,2.24369878,3667.2,3667.1,0.1788871]
[1736137818607,1.71265864,3667.3,3667.1,0.1788871]
[1736137819007,1.71265864,3667.3,3667.2,0.8136]
[1736137819222,1.71265864,3667.3,3667.2,0.88718934]
[1736137819732,1.71265864,3667.3,3667.2,0.07358934]
[1736137820141,1.14240963,3667.3,3667.2,0.07358934]
[1736137820593,1.14240963,3667.3,3667.1,0.1788871]
[1736137820790,1.14240963,3667.3,3667.2,0.07358934]
[1736137821395,2.60986154,3667.4,3667.2,0.07358934]
[1736137823955,1.71265864,3667.4,3667.1,0.1788871]
[1736137824559,1.71265864,3667.4,3667.2,0.07340318]
[1736137825611,3.95691848,3667.4,3667.2,0.07340318]
[1736137826766,5.45378734,3667.4,3667.2,0.07340318]
[1736137827059,1.71265864,3667.3,3667.2,0.07340318]
[1736137827924,2.39407176,3667.4,3667.2,0.07340318]
[1736137828131,6.65372882,3667.3,3667.2,0.07340318]
[1736137829710,4.85736237,3667.3,3667.2,0.07340318]
[1736137830069,6.38693082,3667.3,3667.2,0.07340318]
[1736137831151,8.669003,3667.3,3667.2,0.07340318]
[1736137831351,8.669003,3667.3,3667.1,0.1788871]
[1736137831868,8.669003,3667.3,3667.2,0.07340318]
[1736137832377,4.14267098,3667.3,3667.1,0.1788871]
[1736137832757,4.14267098,3667.3,3667.2,0.07340318]
[1736137833218,4.14267098,3667.3,3667.1,0.1788871]
[1736137833520,4.14267098,3667.3,3667.2,0.07340318]
[1736137834022,4.14267098,3667.3,3667.1,0.1788871]
[1736137834318,0.95858901,3667.2,3667.1,0.1788871]
[1736137835010,2.13792777,3667.2,3667.1,0.1788871]
[1736137835700,4.59210777,3667.2,3667.1,0.1788871]
[1736137835874,5.34630777,3667.2,3667.1,0.1788871]
[1736137836457,11.66982729,3667.2,3667.1,0.1788871]
[1736137837688,12.23433052,3667.2,3667.1,0.1788871]
[1736137838803,9.38775511,3667.2,3667.1,0.1788871]
[1736137841469,8.07806797,3667.2,3667.1,0.1788871]
[1736137841669,6.89872921,3667.2,3667.1,0.1788871]
[1736137842408,6.89872921,3667.2,3667.1,0.25242553]
[1736137842867,8.07806797,3667.2,3667.1,0.25242553]
[1736137843204,3.66957716,3667.2,3667.1,0.25242553]
[1736137843508,3.66957716,3667.2,3667.1,0.1788871]
[1736137844685,3.42458728,3667.2,3667.1,0.1788871]
[1736137845578,5.13922122,3667.2,3667.1,0.1788871]
[1736137846804,7.50795048,3667.2,3667.1,0.1788871]
[1736137847809,5.71076587,3667.2,3667.1,0.1788871]
[1736137848821,5.22177189,3667.2,3667.1,0.1788871]
[1736137850216,7.50795048,3667.2,3667.1,0.1788871]
[1736137850775,7.50795048,3667.2,3667.1,0.24995757]
[1736137855334,7.50795048,3667.2,3667.1,0.1788871]
[1736137855935,8.86968972,3667.2,3667.1,0.24995757]
[1736137856534,8.86968972,3667.2,3667.1,0.1788871]
[1736137856936,8.86968972,3667.2,3667.1,0.24995757]
[1736137860151,6.58351113,3667.2,3667.1,0.24995757]
[1736137860316,5.22177189,3667.2,3667.1,0.24995757]
[1736137862238,4.04243313,3667.2,3667.1,4.06760757]
[1736137862440,6.33121757,3667.2,3667.1,4.61099444]
[1736137862853,6.33121757,3667.2,3667.1,39.06760757]
[1736137863748,1.17933876,3667.9,3667.3,0.8134]
[1736137864035,1.17933876,3667.9,3667.4,2.45403]
[1736137864342,1.17933876,3667.9,3667.5,2.45397]
[1736137864639,2.49132775,3668.0,3667.6,0.8091]
[1736137864805,2.49132775,3668.0,3667.6,0.87984]
[1736137865010,1.14417864,3667.9,3667.6,0.87984]
[1736137865210,1.14417864,3667.9,3667.7,0.333381]
[1736137865522,1.14417864,3667.9,3667.8,0.07067343]
[1736137866229,1.17933876,3668.1,3667.8,0.07067343]
[1736137867432,1.17933876,3667.9,3667.8,0.07067343]
[1736137867638,1.17933876,3667.9,3667.6,0.8091]
[1736137867839,1.17933876,3667.9,3667.8,0.07067343]
[1736137868029,1.17933876,3667.9,3667.7,0.07070672]
[1736137868354,1.17933876,3667.9,3667.8,0.07067343]
[1736137868707,1.17933876,3667.9,3667.6,0.8091]
[1736137868910,1.17933876,3667.9,3667.7,0.07070672]
[1736137871215,1.17933876,3667.9,3667.3,0.8263]
[1736137871458,1.17933876,3667.5,3667.1,0.1788871]
[1736137871622,0.8179,3667.7,3667.1,0.1788871]
[1736137871623,1.17933876,3667.3,3667.1,0.1788871]
[1736137871949,3.63346876,3667.3,3667.1,0.1788871]
[1736137872218,0.8179,3667.2,3667.1,0.1788871]
[1736137873961,0.8179,3667.2,3667.1,0.24927952]
[1736137874118,3.86425673,3667.2,3667.1,0.24927952]
[1736137874750,6.31843673,3667.2,3667.1,0.24927952]
[1736137875567,6.31843673,3667.2,3667.1,0.1788871]
[1736137876364,6.92483447,3667.2,3667.1,0.1788871]
[1736137877781,6.8863881,3667.2,3667.1,0.1788871]
[1736137878682,5.13865809,3667.2,3667.1,0.1788871]
[1736137879050,7.42744253,3667.2,3667.1,0.1788871]
[1736137880488,9.74579232,3667.2,3667.1,0.1788871]
[1736137881780,0.7514,3666.7,3665.1,0.7886]
[1736137882006,2.6131021,3665.7,3665.1,0.7886]
[1736137882188,2.6131021,3665.7,3665.2,0.07102646]
[1736137883100,2.6131021,3665.4,3665.2,0.07102646]
[1736137884108,2.6131021,3665.4,3664.9,0.7674]
[1736137884394,2.6131021,3665.4,3665.0,0.06969479]
[1736137888058,3.4110021,3665.4,3665.0,0.06969479]
[1736137890334,2.6131021,3665.4,3665.0,0.06969479]
[1736137894344,3.20113531,3665.4,3665.0,0.06969479]
[1736137897750,3.20113531,3665.4,3664.6,0.8199]
[1736137897951,3.20113531,3665.4,3665.1,0.07078793]
[1736137898111,3.20113531,3665.4,3664.6,0.8199]
[1736137898448,0.58803321,3665.4,3664.7,0.07092127]
[1736137899312,0.8119,3665.6,3664.7,0.07092127]
[1736137900442,3.26717,3665.6,3664.7,0.07092127]
[1736137905062,1.18040882,3665.2,3664.7,0.07092127]
[1736137910833,1.18040882,3665.0,3664.7,0.07092127]
[1736137912961,1.18040882,3665.2,3664.7,0.07092127]
[1736137920174,3.26716,3665.6,3664.7,0.07092127]
[1736137920393,1.18040882,3665.1,3664.7,0.07092127]
[1736137923757,1.1404619,3665.5,3664.7,0.07092127]
[1736137923952,1.1404619,3665.5,3665.2,2.45552]
[1736137924199,1.1404619,3665.5,3665.3,2.52598489]
[1736137924404,1.1404619,3665.5,3665.4,0.8001]
[1736137924601,2.32087072,3665.5,3665.4,0.07050157]
[1736137924903,2.32087072,3665.5,3665.2,0.8001]
[1736137925061,2.32087072,3665.5,3665.4,0.07039509]
[1736137925260,2.32087072,3665.5,3665.2,0.8001]
[1736137925261,2.32087072,3665.5,3665.3,0.07042842]
[1736137925461,2.32087072,3665.5,3665.4,0.07039509]
[1736137925780,2.32087072,3665.5,3665.2,0.8001]
[1736137925978,2.32087072,3665.5,3665.4,0.07039509]
[1736137926183,1.1404619,3665.5,3665.2,0.8001]
[1736137926404,1.18040882,3665.7,3665.4,0.07039509]
[1736137926710,1.18040882,3665.7,3665.2,0.8001]
[1736137926874,1.18040882,3665.7,3665.5,0.0703041]
[1736137927078,2.32087072,3665.9,3665.2,0.8001]
[1736137927263,2.32087072,3665.9,3665.6,0.07027078]
[1736137927458,2.32087072,3665.9,3665.2,0.8001]
[1736137927781,1.71069286,3665.8,3665.3,0.7503]